{"text_format":"1","workbook":"xlsx","n_sheets":4,"sheets":["Instrukcija","Suvestine","1","2"],"not_rendered":{"charts":0,"images":1,"macros":1,"external_links":0,"defined_names":2,"comments":0,"pivot_tables":0},"unopened":[],"bounds":{"document_bytes":16777216,"sheet_cells":100000,"rows_first":2000,"rows_last":500,"rows_between":2000,"halvings":0,"cell_chars":16384,"cell_head_chars":4096},"cells_cut":0,"cells_raw":0,"read":"whole","date_system":"1900"}

{"sheet":"Instrukcija","index":0,"n_rows":9,"n_cols":4,"rows_kept":9,"cut":false,"hidden":false,"merged":[[0,3,0,5],[5,1,5,5],[8,1,8,5],[2,0,2,5],[4,1,4,5],[6,1,6,5],[7,1,7,5]]}
[null,null,null,"Verslo plano priedas „Reikalingi ištekliai“\nNr. 1B"]
[]
["Pildymo instrukcija"]
[]
[1,"Šis verslo plano priedas Nr. 1B pildomas tik projekto veikloms, nurodytoms 2014–2020 metų Europos Sąjungos fondų investicijų veiksmų programos 1 prioriteto „Mokslinių tyrimų, eksperimentinės plėtros ir inovacijų skatinimas“ PRIEMONĖS NR. 01.2.1-LVPA-K-823 „SMARTINVEST LT+“ projektų finansavimo sąlygų aprašo Nr. 2 10.2 punkte."]
[2,"Pildykite tik žalia spalva pažymėtus laukus."]
[3,"Nereikalingų eilučių, stulpelių netrinkite, esant poreikiui eilutes, stulpelius galite tik paslėpti (hide)."]
[4,"Kiekvienam pirmo lygio (kurio paraiškoje nurodytas numeris susideda iš trijų skaitmenų) fiziniam rodikliui, nurodytam paraiškos 6 dalyje „Projekto loginis pagrindimas“, pildykite atskirą lapą. Fizinio rodiklio pavadinimas ir numeris turi sutapti su paraiškoje nurodytais fizinių rodiklių pavadinimais ir numeriais. Jei projektas vykdomas kartu su partneriu(-iais), veikloms, kurios vykdomos kartu su partneriu(-iais) rekomenduojama atskirai numatyti pareiškėjui ir partneriui(-iams) tenkančius fizinius rodiklius.\nAtkreipiame dėmesį, kad vienam fiziniam rodikliui gali būti priskirta tik viena biudžeto išlaidų kategorija."]
[5,"Kartu su verslo planu turi būti pateiktas ir šis verslo plano priedas (popierinė ir elektroninė versijos). LVPA teikiamoje elektroninėje versijoje turi likti visos skaičiavimams naudotos formulės."]

{"sheet":"Suvestine","index":1,"n_rows":19,"n_cols":6,"rows_kept":19,"cut":false,"hidden":false,"merged":[[20,0,20,3],[10,0,10,5],[18,0,18,1],[0,0,0,5],[8,0,8,5],[6,0,6,3]]}
["Veiklų, vykdomų pagal Aprašo 10.2 punktą, išlaidų suvestinė lentelė pagal fizinius rodiklius (lentelė užsipildo automatiškai)"]
[]
["Fizinio rodiklio Nr.","Fizinio rodiklio pavadinimas","Fizinio rodiklio matavimo vnt.","Fizinio rodiklio vnt. skaičius","Tinkamų finansuoti išlaidų suma, Eur","Finansavimo suma, Eur"]
[4,"Įranga, įrenginiai ir kt. turtas",null,null,{"$f":"SUM(E5:E6)","v":0},{"$f":"SUM(F5:F6)","v":0}]
[{"$f":"'1'!$D$1","v":0},{"$f":"'1'!$D$2","v":0},{"$f":"'1'!$D$3","v":0},{"$f":"'1'!$H$3","v":0},{"$f":"'1'!$G$9","v":0},{"$f":"'1'!$I$9","v":0}]
[{"$f":"'2'!$D$1","v":0},{"$f":"'2'!$D$2","v":0},{"$f":"'2'!$D$3","v":0},{"$f":"'2'!$H$3","v":0},{"$f":"'2'!$G$9","v":0},{"$f":"'2'!$I$9","v":0}]
["Iš viso:",null,null,null,{"$f":"E4","v":0},{"$f":"F4","v":0}]
[]
[]
[]
["Veiklų, vykdomų pagal Aprašo 10.2 punktą, išlaidų suvestinė lentelė pagal išlaidų kategorijas (lentelė užsipildo automatiškai)"]
[]
["Eil. Nr.","Išlaidų kategorijos pavadinimas","Tinkamų finansuoti išlaidų suma be PVM, Eur","Finansavimo suma, Eur"]
[4,"ĮRANGA, ĮRENGINIAI IR KITAS TURTAS",{"$f":"'1'!G9+'2'!G9","v":0},{"$f":"'1'!I9+'2'!I9","v":0}]
["4.1","Baldai (tiesiogiai MTEP veikloms vykdyti bei kuriamoms tyrėjų ir pagalbinio personalo darbo vietoms aprūpinti būtini baldai)",{"$f":"'1'!G10+'2'!G10","v":0},{"$f":"'1'!I10+'2'!I10","v":0}]
["4.2","Kompiuterinė technika ",{"$f":"'1'!G21+'2'!G21","v":0},{"$f":"'1'!I21+'2'!I21","v":0}]
["4.3","Patentai, licencijos, susijusios su MTEP ir inovacijų infrastruktūra ar jos panaudojimu",{"$f":"'1'!G27+'2'!G27","v":0},{"$f":"'1'!I27+'2'!I27","v":0}]
["4.4","Kiti įrengimai, įranga, prietaisai, įrankiai ir įrenginiai, priskirtini MTEP ir inovacijų infrastruktūrai",{"$f":"'1'!G33+'2'!G33","v":0},{"$f":"'1'!I33+'2'!I33","v":0}]
["Iš viso tinkamų finansuoti išlaidų veikloms, vykdomoms pagal Aprašo 10.2 punktą:",null,{"$f":"C14","v":0},{"$f":"D14","v":0}]

{"sheet":"1","index":2,"n_rows":54,"n_cols":10,"rows_kept":54,"cut":false,"hidden":false,"merged":[[1,0,1,2],[18,1,18,2],[1,3,1,9],[19,1,19,2],[20,1,20,2],[7,1,7,2],[2,5,2,6],[2,3,2,4],[3,0,3,2],[3,3,3,8],[13,1,13,2],[14,1,14,2],[15,1,15,2],[16,1,16,2],[17,1,17,2],[8,1,8,5],[53,0,53,5],[9,1,9,2],[10,1,10,2],[11,1,11,2],[12,1,12,2],[52,1,52,2],[33,1,33,2],[34,1,34,2],[35,1,35,2],[36,1,36,2],[50,1,50,2],[51,1,51,2],[49,1,49,2],[41,1,41,2],[42,1,42,2],[43,1,43,2],[44,1,44,2],[45,1,45,2],[46,1,46,2],[47,1,47,2],[48,1,48,2],[21,1,21,2],[22,1,22,2],[23,1,23,2],[39,1,39,2],[40,1,40,2],[37,1,37,2],[38,1,38,2],[30,1,30,2],[31,1,31,2],[32,1,32,2],[29,1,29,2],[24,1,24,2],[25,1,25,2],[26,1,26,2],[27,1,27,2],[28,1,28,2]]}
[null,null,"Fizinio rodiklio Nr.:"]
["Fizinio rodiklio pavadinimas:"]
[null,null,"Fizinio rodiklio matavimo vnt.:",null,null,"Fizinio rodiklio vnt. skaičius:"]
["Juridinis asmuo (pareiškėjas, partneris), atsakingas už fizinį rodiklį:"]
[]
[null,null,"Finansavimo intensyvumas:"]
[]
["Eil. Nr.","Išlaidų kategorijos pavadinimas",null,"Matavimo vnt.","Kiekis","Vieneto kaina be PVM, Eur","Tinkamų finansuoti išlaidų suma be PVM, Eur","Infrastruktūros naudojimo laiko dalis, skirta išimtinai MTEP, proc.","Finansavimo suma, Eur","Išlaidų pagrindimo dokumentų (ne mažiau kaip 3 komercinių pasiūlymų, sąmatų, techninių projektų ir pan.) pavadinimas, data ir Nr."]
[4,"ĮRANGA, ĮRENGINIAI IR KITAS TURTAS",null,null,null,null,{"$f":"SUM(G10,G21,G27,G33)","v":0},null,{"$f":"SUM(I10,I21,I27,I33)","v":0}]
["4.1","Baldai (tiesiogiai MTEP veikloms vykdyti bei kuriamoms tyrėjų ir pagalbinio personalo darbo vietoms aprūpinti būtini baldai)",null,null,null,null,{"$f":"SUM(G11:G20)","v":0},null,{"$f":"SUM(I11:I20)","v":0}]
["4.1.1","Išlaidų pavadinimas",null,null,null,null,{"$f":"ROUND(E11*F11,2)","v":0},null,{"$f":"ROUND(G11*$D$6*H11,2)","v":0}]
["4.1.2","Išlaidų pavadinimas",null,null,null,null,{"$f":"ROUND(E12*F12,2)","v":0},null,{"$f":"ROUND(G12*$D$6*H12,2)","v":0}]
["4.1.3","Išlaidų pavadinimas",null,null,null,null,0,null,0]
["4.1.4","Išlaidų pavadinimas",null,null,null,null,0,null,0]
["4.1.5","Išlaidų pavadinimas",null,null,null,null,0,null,0]
["4.1.6","Išlaidų pavadinimas",null,null,null,null,0,null,0]
["4.1.7","Išlaidų pavadinimas",null,null,null,null,0,null,0]
["4.1.8","Išlaidų pavadinimas",null,null,null,null,0,null,0]
["4.1.9","Išlaidų pavadinimas",null,null,null,null,0,null,0]
["4.1.10","Išlaidų pavadinimas",null,null,null,null,0,null,0]
["4.2","Kompiuterinė technika",null,null,null,null,{"$f":"SUM(G22:G26)","v":0},null,{"$f":"SUM(I22:I26)","v":0}]
["4.2.1","Išlaidų pavadinimas",null,null,null,null,0,null,{"$f":"ROUND(G22*$D$6*H22,2)","v":0}]
["4.2.2","Išlaidų pavadinimas",null,null,null,null,0,null,{"$f":"ROUND(G23*$D$6*H23,2)","v":0}]
["4.2.3","Išlaidų pavadinimas",null,null,null,null,0,null,0]
["4.2.4","Išlaidų pavadinimas",null,null,null,null,0,null,0]
["4.2.5","Išlaidų pavadinimas",null,null,null,null,0,null,0]
["4.3","Patentai, licencijos, susijusios su MTEP ir inovacijų infrastruktūra ar jos panaudojimu",null,null,null,null,{"$f":"SUM(G28:G32)","v":0},null,{"$f":"SUM(I28:I32)","v":0}]
["4.3.1","Išlaidų pavadinimas",null,null,null,null,0,null,{"$f":"ROUND(G28*$D$6*H28,2)","v":0}]
["4.3.2","Išlaidų pavadinimas",null,null,null,null,0,null,{"$f":"ROUND(G29*$D$6*H29,2)","v":0}]
["4.3.3","Išlaidų pavadinimas",null,null,null,null,0,null,0]
["4.3.4","Išlaidų pavadinimas",null,null,null,null,0,null,0]
["4.3.5","Išlaidų pavadinimas",null,null,null,null,0,null,0]
["4.4","Kiti įrengimai, įranga, prietaisai, įrankiai ir įrenginiai, priskirtini MTEP ir inovacijų infrastruktūrai",null,null,null,null,{"$f":"SUM(G34:G53)","v":0},null,{"$f":"SUM(I34:I53)","v":0}]
["4.4.1","Išlaidų pavadinimas",null,null,null,null,0,null,{"$f":"ROUND(G34*$D$6*H34,2)","v":0}]
["4.4.2","Išlaidų pavadinimas",null,null,null,null,0,null,{"$f":"ROUND(G35*$D$6*H35,2)","v":0}]
["4.4.3","Išlaidų pavadinimas",null,null,null,null,0,null,0]
["4.4.4","Išlaidų pavadinimas",null,null,null,null,0,null,0]
["4.4.5","Išlaidų pavadinimas",null,null,null,null,0,null,0]
["4.4.6","Išlaidų pavadinimas",null,null,null,null,0,null,0]
["4.4.7","Išlaidų pavadinimas",null,null,null,null,0,null,0]
["4.4.8","Išlaidų pavadinimas",null,null,null,null,0,null,0]
["4.4.9","Išlaidų pavadinimas",null,null,null,null,0,null,0]
["4.4.10","Išlaidų pavadinimas",null,null,null,null,0,null,0]
["4.4.11","Išlaidų pavadinimas",null,null,null,null,0,null,0]
["4.4.12","Išlaidų pavadinimas",null,null,null,null,0,null,0]
["4.4.13","Išlaidų pavadinimas",null,null,null,null,0,null,0]
["4.4.14","Išlaidų pavadinimas",null,null,null,null,0,null,0]
["4.4.15","Išlaidų pavadinimas",null,null,null,null,0,null,0]
["4.4.16","Išlaidų pavadinimas",null,null,null,null,0,null,0]
["4.4.17","Išlaidų pavadinimas",null,null,null,null,0,null,0]
["4.4.18","Išlaidų pavadinimas",null,null,null,null,0,null,0]
["4.4.19","Išlaidų pavadinimas",null,null,null,null,0,null,0]
["4.4.20","Išlaidų pavadinimas",null,null,null,null,0,null,0]
["Iš viso tinkamų finansuoti išlaidų:",null,null,null,null,null,{"$f":"G9","v":0},null,{"$f":"I9","v":0}]

{"sheet":"2","index":3,"n_rows":54,"n_cols":10,"rows_kept":54,"cut":false,"hidden":false,"merged":[[53,0,53,5],[47,1,47,2],[48,1,48,2],[49,1,49,2],[50,1,50,2],[51,1,51,2],[52,1,52,2],[46,1,46,2],[1,3,1,9],[45,1,45,2],[44,1,44,2],[22,1,22,2],[11,1,11,2],[12,1,12,2],[13,1,13,2],[14,1,14,2],[15,1,15,2],[16,1,16,2],[17,1,17,2],[18,1,18,2],[32,1,32,2],[1,0,1,2],[3,0,3,2],[43,1,43,2],[35,1,35,2],[36,1,36,2],[37,1,37,2],[38,1,38,2],[39,1,39,2],[40,1,40,2],[19,1,19,2],[20,1,20,2],[21,1,21,2],[34,1,34,2],[23,1,23,2],[24,1,24,2],[25,1,25,2],[7,1,7,2],[2,3,2,4],[2,5,2,6],[41,1,41,2],[42,1,42,2],[26,1,26,2],[27,1,27,2],[28,1,28,2],[29,1,29,2],[30,1,30,2],[31,1,31,2],[9,1,9,2],[3,3,3,8],[8,1,8,5],[33,1,33,2],[10,1,10,2]]}
[null,null,"Fizinio rodiklio Nr.:"]
["Fizinio rodiklio pavadinimas:"]
[null,null,"Fizinio rodiklio matavimo vnt.:",null,null,"Fizinio rodiklio vnt. skaičius:"]
["Juridinis asmuo (pareiškėjas, partneris), atsakingas už fizinį rodiklį:"]
[]
[null,null,"Finansavimo intensyvumas:"]
[]
["Eil. Nr.","Išlaidų kategorijos pavadinimas",null,"Matavimo vnt.","Kiekis","Vieneto kaina be PVM, Eur","Tinkamų finansuoti išlaidų suma be PVM, Eur","Infrastruktūros naudojimo laiko dalis, skirta išimtinai MTEP, proc.","Finansavimo suma, Eur","Išlaidų pagrindimo dokumentų (ne mažiau kaip 3 komercinių pasiūlymų, sąmatų, techninių projektų ir pan.) pavadinimas, data ir Nr."]
[4,"ĮRANGA, ĮRENGINIAI IR KITAS TURTAS",null,null,null,null,{"$f":"SUM(G10,G21,G27,G33)","v":0},null,{"$f":"SUM(I10,I21,I27,I33)","v":0}]
["4.1","Baldai (tiesiogiai MTEP veikloms vykdyti bei kuriamoms tyrėjų ir pagalbinio personalo darbo vietoms aprūpinti būtini baldai)",null,null,null,null,{"$f":"SUM(G11:G20)","v":0},null,{"$f":"SUM(I11:I20)","v":0}]
["4.1.1","Išlaidų pavadinimas",null,null,null,null,{"$f":"ROUND(E11*F11,2)","v":0},null,{"$f":"ROUND(G11*$D$6*H11,2)","v":0}]
["4.1.2","Išlaidų pavadinimas",null,null,null,null,0,null,{"$f":"ROUND(G12*$D$6*H12,2)","v":0}]
["4.1.3","Išlaidų pavadinimas",null,null,null,null,0,null,0]
["4.1.4","Išlaidų pavadinimas",null,null,null,null,0,null,0]
["4.1.5","Išlaidų pavadinimas",null,null,null,null,0,null,0]
["4.1.6","Išlaidų pavadinimas",null,null,null,null,0,null,0]
["4.1.7","Išlaidų pavadinimas",null,null,null,null,0,null,0]
["4.1.8","Išlaidų pavadinimas",null,null,null,null,0,null,0]
["4.1.9","Išlaidų pavadinimas",null,null,null,null,0,null,0]
["4.1.10","Išlaidų pavadinimas",null,null,null,null,0,null,0]
["4.2","Kompiuterinė technika",null,null,null,null,{"$f":"SUM(G22:G26)","v":0},null,{"$f":"SUM(I22:I26)","v":0}]
["4.2.1","Išlaidų pavadinimas",null,null,null,null,0,null,{"$f":"ROUND(G22*$D$6*H22,2)","v":0}]
["4.2.2","Išlaidų pavadinimas",null,null,null,null,0,null,{"$f":"ROUND(G23*$D$6*H23,2)","v":0}]
["4.2.3","Išlaidų pavadinimas",null,null,null,null,0,null,0]
["4.2.4","Išlaidų pavadinimas",null,null,null,null,0,null,0]
["4.2.5","Išlaidų pavadinimas",null,null,null,null,0,null,0]
["4.3","Patentai, licencijos, susijusios su MTEP ir inovacijų infrastruktūra ar jos panaudojimu",null,null,null,null,{"$f":"SUM(G28:G32)","v":0},null,{"$f":"SUM(I28:I32)","v":0}]
["4.3.1","Išlaidų pavadinimas",null,null,null,null,0,null,{"$f":"ROUND(G28*$D$6*H28,2)","v":0}]
["4.3.2","Išlaidų pavadinimas",null,null,null,null,0,null,{"$f":"ROUND(G29*$D$6*H29,2)","v":0}]
["4.3.3","Išlaidų pavadinimas",null,null,null,null,0,null,0]
["4.3.4","Išlaidų pavadinimas",null,null,null,null,0,null,0]
["4.3.5","Išlaidų pavadinimas",null,null,null,null,0,null,0]
["4.4","Kiti įrengimai, įranga, prietaisai, įrankiai ir įrenginiai, priskirtini MTEP ir inovacijų infrastruktūrai",null,null,null,null,{"$f":"SUM(G34:G53)","v":0},null,{"$f":"SUM(I34:I53)","v":0}]
["4.4.1","Išlaidų pavadinimas",null,null,null,null,0,null,{"$f":"ROUND(G34*$D$6*H34,2)","v":0}]
["4.4.2","Išlaidų pavadinimas",null,null,null,null,0,null,{"$f":"ROUND(G35*$D$6*H35,2)","v":0}]
["4.4.3","Išlaidų pavadinimas",null,null,null,null,0,null,0]
["4.4.4","Išlaidų pavadinimas",null,null,null,null,0,null,0]
["4.4.5","Išlaidų pavadinimas",null,null,null,null,0,null,0]
["4.4.6","Išlaidų pavadinimas",null,null,null,null,0,null,0]
["4.4.7","Išlaidų pavadinimas",null,null,null,null,0,null,0]
["4.4.8","Išlaidų pavadinimas",null,null,null,null,0,null,0]
["4.4.9","Išlaidų pavadinimas",null,null,null,null,0,null,0]
["4.4.10","Išlaidų pavadinimas",null,null,null,null,0,null,0]
["4.4.11","Išlaidų pavadinimas",null,null,null,null,0,null,0]
["4.4.12","Išlaidų pavadinimas",null,null,null,null,0,null,0]
["4.4.13","Išlaidų pavadinimas",null,null,null,null,0,null,0]
["4.4.14","Išlaidų pavadinimas",null,null,null,null,0,null,0]
["4.4.15","Išlaidų pavadinimas",null,null,null,null,0,null,0]
["4.4.16","Išlaidų pavadinimas",null,null,null,null,0,null,0]
["4.4.17","Išlaidų pavadinimas",null,null,null,null,0,null,0]
["4.4.18","Išlaidų pavadinimas",null,null,null,null,0,null,0]
["4.4.19","Išlaidų pavadinimas",null,null,null,null,0,null,0]
["4.4.20","Išlaidų pavadinimas",null,null,null,null,0,null,0]
["Iš viso tinkamų finansuoti išlaidų:",null,null,null,null,null,{"$f":"G9","v":0},null,{"$f":"I9","v":0}]